[Event "Titled Tuesday Blitz June 21 Early 2022"]
[White "Terry, Renato"]
[Black "Clasby, Derek"]
[WhiteFideId "3803457"]
[BlackFideId "30932300"]
[WhiteElo "2577"]
[BlackElo "2013"]
[Result "1-0"]
[Round "02"]
[TimeControl "180+1"]
[Date "2022.06.21"]
[WhiteClock "0:00:02"]
[BlackClock "0:00:09"]

1. d4 {[%clk 0:03:00]}  Nf6 {[%clk 0:03:00]} 2. Bg5 {[%clk 0:03:00]}  e6 {[%clk 0:03:00]} 3. e4 {[%clk 0:03:00]}  h6 {[%clk 0:03:00]} 4. Bxf6 {[%clk 0:03:00]}  Qxf6 {[%clk 0:03:01]} 5. c3 {[%clk 0:03:01]}  d6 {[%clk 0:03:02]} 6. Bd3 {[%clk 0:03:01]}  g5 {[%clk 0:03:02]} 7. Ne2 {[%clk 0:03:01]}  Bg7 {[%clk 0:03:03]} 8. Ng3 {[%clk 0:03:01]}  Qe7 {[%clk 0:02:58]} 9. Nh5 {[%clk 0:03:01]}  Rg8 {[%clk 0:02:52]} 10. e5 {[%clk 0:02:57]}  Kf8 {[%clk 0:02:44]} 11. Qe2 {[%clk 0:02:50]}  dxe5 {[%clk 0:02:38]} 12. Nxg7 {[%clk 0:02:50]}  Kxg7 {[%clk 0:02:36]} 13. Qxe5+ {[%clk 0:02:50]}  f6 {[%clk 0:02:34]} 14. Qe4 {[%clk 0:02:50]}  Kf8 {[%clk 0:02:25]} 15. Nd2 {[%clk 0:02:47]}  Nc6 {[%clk 0:02:18]} 16. O-O-O {[%clk 0:02:47]}  Bd7 {[%clk 0:02:18]} 17. Rde1 {[%clk 0:02:42]}  Re8 {[%clk 0:02:16]} 18. Qf3 {[%clk 0:02:35]}  Kg7 {[%clk 0:02:05]} 19. h4 {[%clk 0:02:34]}  Rh8 {[%clk 0:02:02]} 20. Qe4 {[%clk 0:02:30]}  Qf7 {[%clk 0:02:00]} 21. f4 {[%clk 0:02:15]}  g4 {[%clk 0:01:24]} 22. h5 {[%clk 0:02:12]}  f5 {[%clk 0:01:20]} 23. Qe2 {[%clk 0:02:10]}  Qf6 {[%clk 0:01:11]} 24. Nb3 {[%clk 0:01:54]}  b6 {[%clk 0:01:08]} 25. Nd2 {[%clk 0:01:54]}  Re7 {[%clk 0:01:05]} 26. Bb5 {[%clk 0:01:53]}  Rd8 {[%clk 0:00:56]} 27. Nb3 {[%clk 0:01:38]}  a5 {[%clk 0:00:51]} 28. Qc4 {[%clk 0:01:28]}  a4 {[%clk 0:00:23]} 29. Bxa4 {[%clk 0:01:24]}  Na5 {[%clk 0:00:11]} 30. Nxa5 {[%clk 0:01:12]}  Bxa4 {[%clk 0:00:10]} 31. Qxa4 {[%clk 0:01:03]}  Ra8 {[%clk 0:00:10]} 32. Re5 {[%clk 0:01:01]}  c5 {[%clk 0:00:07]} 33. dxc5 {[%clk 0:00:26]}  Rxa5 {[%clk 0:00:06]} 34. Qb3 {[%clk 0:00:27]}  bxc5 {[%clk 0:00:06]} 35. g3 {[%clk 0:00:25]}  c4 {[%clk 0:00:05]} 36. Qb4 {[%clk 0:00:15]}  Rxe5 {[%clk 0:00:04]} 37. fxe5 {[%clk 0:00:15]}  Qg5+ {[%clk 0:00:05]} 38. Kb1 {[%clk 0:00:16]}  Rd7 {[%clk 0:00:05]} 39. Qxc4 {[%clk 0:00:15]}  Qe3 {[%clk 0:00:06]} 40. a4 {[%clk 0:00:14]}  Qxe5 {[%clk 0:00:05]} 41. Qb5 {[%clk 0:00:13]}  Qe4+ {[%clk 0:00:04]} 42. Ka2 {[%clk 0:00:13]}  Rb7 {[%clk 0:00:05]} 43. Re1 {[%clk 0:00:10]}  Rxb5 {[%clk 0:00:02]} 44. Rxe4 {[%clk 0:00:10]}  fxe4 {[%clk 0:00:03]} 45. axb5 {[%clk 0:00:11]}  e3 {[%clk 0:00:04]} 46. b6 {[%clk 0:00:10]}  e2 {[%clk 0:00:05]} 47. b7 {[%clk 0:00:11]}  e1=Q {[%clk 0:00:06]} 48. b8=Q {[%clk 0:00:12]}  Qe4 {[%clk 0:00:06]} 49. Qc7+ {[%clk 0:00:07]}  Kf6 {[%clk 0:00:06]} 50. b4 {[%clk 0:00:07]}  Qc2+ {[%clk 0:00:06]} 51. Ka3 {[%clk 0:00:07]}  Qc1+ {[%clk 0:00:06]} 52. Ka4 {[%clk 0:00:08]}  Qa1+ {[%clk 0:00:06]} 53. Kb5 {[%clk 0:00:07]}  Qa8 {[%clk 0:00:06]} 54. Kb6 {[%clk 0:00:07]}  Qf3 {[%clk 0:00:06]} 55. b5 {[%clk 0:00:07]}  Qe3+ {[%clk 0:00:06]} 56. Kb7 {[%clk 0:00:07]}  e5 {[%clk 0:00:07]} 57. b6 {[%clk 0:00:04]}  Qxg3 {[%clk 0:00:07]} 58. Qd6+ {[%clk 0:00:04]}  Kf5 {[%clk 0:00:08]} 59. Qd7+ {[%clk 0:00:04]}  Kf4 {[%clk 0:00:08]} 60. Qf7+ {[%clk 0:00:02]}  Ke4 {[%clk 0:00:09]} 61. Qc4+ {[%clk 0:00:03]}  Kf5 {[%clk 0:00:09]} 62. Ka8 {[%clk 0:00:02]}  Qe1 {[%clk 0:00:08]} 63. b7 {[%clk 0:00:03]}  Qa1+ {[%clk 0:00:09]} 64. Kb8 {[%clk 0:00:03]}  g3 {[%clk 0:00:10]} 65. Kc8 {[%clk 0:00:03]}  g2 {[%clk 0:00:09]} 66. Qf7+ {[%clk 0:00:02]}  Ke4 {[%clk 0:00:09]} 67. Qc4+ {[%clk 0:00:02]}  Kf3 {[%clk 0:00:10]} 68. b8=Q {[%clk 0:00:02]}  g1=Q {[%clk 0:00:09]} 69. Qb7+ {[%clk 0:00:03]}  Kg3 {[%clk 0:00:09]} 70. Qg7+ {[%clk 0:00:02]}  Kh2 {[%clk 0:00:09]} 71. Qh4# {[%clk 0:00:02]} 1-0


[Site "https://www.chess.com"]

[Event "Titled Tuesday Blitz June 21 Early 2022"]
[White "Timofeev, Artyom"]
[Black "Florescu, Codrut-Constantin"]
[WhiteFideId "4140419"]
[BlackFideId "1202200"]
[WhiteElo "2578"]
[BlackElo "2191"]
[Result "1-0"]
[Round "02"]
[TimeControl "180+1"]
[Date "2022.06.21"]
[WhiteClock "0:00:17"]
[BlackClock "0:00:07"]

1. e4 {[%clk 0:03:00]}  c5 {[%clk 0:02:59]} 2. Nc3 {[%clk 0:02:59]}  e6 {[%clk 0:02:59]} 3. d4 {[%clk 0:02:58]}  cxd4 {[%clk 0:02:58]} 4. Qxd4 {[%clk 0:02:58]}  Nc6 {[%clk 0:02:58]} 5. Qd3 {[%clk 0:02:59]}  a6 {[%clk 0:02:59]} 6. Bf4 {[%clk 0:02:57]}  Bb4 {[%clk 0:02:53]} 7. O-O-O {[%clk 0:02:56]}  Qa5 {[%clk 0:02:45]} 8. Nge2 {[%clk 0:02:55]}  Nf6 {[%clk 0:02:42]} 9. a3 {[%clk 0:02:50]}  Be7 {[%clk 0:02:41]} 10. h4 {[%clk 0:02:40]}  b5 {[%clk 0:02:39]} 11. e5 {[%clk 0:02:35]}  Ng4 {[%clk 0:02:26]} 12. Qg3 {[%clk 0:02:32]}  h5 {[%clk 0:01:50]} 13. f3 {[%clk 0:02:32]}  b4 {[%clk 0:01:41]} 14. fxg4 {[%clk 0:02:31]}  bxc3 {[%clk 0:01:34]} 15. Qxc3 {[%clk 0:02:29]}  hxg4 {[%clk 0:01:30]} 16. g3 {[%clk 0:02:28]}  Qxc3 {[%clk 0:01:10]} 17. Nxc3 {[%clk 0:02:28]}  g5 {[%clk 0:01:10]} 18. Be3 {[%clk 0:02:20]}  Nxe5 {[%clk 0:01:10]} 19. Bg2 {[%clk 0:02:20]}  Rb8 {[%clk 0:01:06]} 20. hxg5 {[%clk 0:02:18]}  Rxh1 {[%clk 0:01:04]} 21. Rxh1 {[%clk 0:02:17]}  Ng6 {[%clk 0:01:02]} 22. Be4 {[%clk 0:02:10]}  Bb7 {[%clk 0:00:54]} 23. Bxb7 {[%clk 0:01:48]}  Rxb7 {[%clk 0:00:54]} 24. Ne4 {[%clk 0:01:49]}  d5 {[%clk 0:00:52]} 25. Nf6+ {[%clk 0:01:45]}  Bxf6 {[%clk 0:00:51]} 26. gxf6 {[%clk 0:01:45]}  e5 {[%clk 0:00:48]} 27. Rh7 {[%clk 0:01:39]}  d4 {[%clk 0:00:48]} 28. Bg5 {[%clk 0:01:38]}  e4 {[%clk 0:00:41]} 29. b4 {[%clk 0:01:37]}  Rb5 {[%clk 0:00:40]} 30. Bd2 {[%clk 0:01:20]}  e3 {[%clk 0:00:39]} 31. Be1 {[%clk 0:01:20]}  Rf5 {[%clk 0:00:40]} 32. Kd1 {[%clk 0:01:21]}  Rxf6 {[%clk 0:00:38]} 33. Ke2 {[%clk 0:01:21]}  Ne5 {[%clk 0:00:38]} 34. c3 {[%clk 0:01:16]}  dxc3 {[%clk 0:00:16]} 35. Bxc3 {[%clk 0:01:11]}  Re6 {[%clk 0:00:16]} 36. a4 {[%clk 0:01:01]}  Nc4 {[%clk 0:00:15]} 37. Rg7 {[%clk 0:00:51]}  f5 {[%clk 0:00:14]} 38. Bd4 {[%clk 0:00:48]}  Re4 {[%clk 0:00:13]} 39. Bc5 {[%clk 0:00:46]}  Nb2 {[%clk 0:00:12]} 40. a5 {[%clk 0:00:42]}  Na4 {[%clk 0:00:12]} 41. Bxe3 {[%clk 0:00:36]}  Nc3+ {[%clk 0:00:11]} 42. Kd3 {[%clk 0:00:36]}  Nd5 {[%clk 0:00:12]} 43. Bd2 {[%clk 0:00:36]}  Nf6 {[%clk 0:00:11]} 44. Rb7 {[%clk 0:00:34]}  Nh5 {[%clk 0:00:10]} 45. b5 {[%clk 0:00:32]}  axb5 {[%clk 0:00:10]} 46. a6 {[%clk 0:00:32]}  Ra4 {[%clk 0:00:10]} 47. a7 {[%clk 0:00:32]}  Nxg3 {[%clk 0:00:08]} 48. Rb8+ {[%clk 0:00:31]}  Kd7 {[%clk 0:00:08]} 49. a8=Q {[%clk 0:00:32]}  Rxa8 {[%clk 0:00:08]} 50. Rxa8 {[%clk 0:00:33]}  Ne4 {[%clk 0:00:08]} 51. Be3 {[%clk 0:00:31]}  Ke6 {[%clk 0:00:08]} 52. Kd4 {[%clk 0:00:30]}  Nd6 {[%clk 0:00:07]} 53. Ra6 {[%clk 0:00:30]}  Kd7 {[%clk 0:00:07]} 54. Kd5 {[%clk 0:00:30]}  Nf7 {[%clk 0:00:08]} 55. Bf4 {[%clk 0:00:29]}  Ke8 {[%clk 0:00:09]} 56. Ra7 {[%clk 0:00:27]}  b4 {[%clk 0:00:08]} 57. Ke6 {[%clk 0:00:27]}  Nd8+ {[%clk 0:00:08]} 58. Kf6 {[%clk 0:00:27]}  Nc6 {[%clk 0:00:09]} 59. Rc7 {[%clk 0:00:26]}  Nd4 {[%clk 0:00:08]} 60. Be5 {[%clk 0:00:23]}  Nf3 {[%clk 0:00:07]} 61. Bd6 {[%clk 0:00:19]}  Kd8 {[%clk 0:00:06]} 62. Rb7 {[%clk 0:00:18]}  g3 {[%clk 0:00:06]} 63. Bxg3 {[%clk 0:00:17]}  b3 {[%clk 0:00:06]} 64. Rxb3 {[%clk 0:00:17]}  Nd4 {[%clk 0:00:06]} 65. Rd3 {[%clk 0:00:17]}  Kc8 {[%clk 0:00:07]} 66. Rxd4 {[%clk 0:00:17]} 1-0


[Site "https://www.chess.com"]

[Event "Titled Tuesday Blitz June 21 Early 2022"]
[White "Topalov, Aleksandar"]
[Black "Csonka, Balazs"]
[WhiteFideId "925659"]
[BlackFideId "742910"]
[WhiteElo "2378"]
[BlackElo "2739"]
[Result "0-1"]
[Round "02"]
[TimeControl "180+1"]
[Date "2022.06.22"]
[WhiteClock "0:01:36"]
[BlackClock "0:01:22"]

1. b3 {[%clk 0:03:00]}  d5 {[%clk 0:02:58]} 2. Bb2 {[%clk 0:03:00]}  Bg4 {[%clk 0:02:59]} 3. g3 {[%clk 0:02:57]}  c6 {[%clk 0:02:57]} 4. Bg2 {[%clk 0:02:57]}  Nd7 {[%clk 0:02:57]} 5. Nf3 {[%clk 0:02:57]}  Ngf6 {[%clk 0:02:57]} 6. O-O {[%clk 0:02:57]}  e6 {[%clk 0:02:57]} 7. d3 {[%clk 0:02:57]}  Bd6 {[%clk 0:02:56]} 8. Nbd2 {[%clk 0:02:42]}  O-O {[%clk 0:02:56]} 9. h3 {[%clk 0:02:43]}  Bh5 {[%clk 0:02:53]} 10. e4 {[%clk 0:02:42]}  e5 {[%clk 0:02:40]} 11. Qe1 {[%clk 0:02:33]}  Re8 {[%clk 0:02:30]} 12. Nh4 {[%clk 0:02:33]}  Bb4 {[%clk 0:02:19]} 13. a3 {[%clk 0:02:30]}  Ba5 {[%clk 0:02:15]} 14. b4 {[%clk 0:02:18]}  Bb6 {[%clk 0:02:08]} 15. Nf5 {[%clk 0:02:18]}  Bg6 {[%clk 0:01:56]} 16. Nb3 {[%clk 0:02:12]}  Bxf5 {[%clk 0:01:54]} 17. exf5 {[%clk 0:02:13]}  e4 {[%clk 0:01:48]} 18. dxe4 {[%clk 0:02:10]}  Nxe4 {[%clk 0:01:48]} 19. Bxe4 {[%clk 0:02:03]}  Rxe4 {[%clk 0:01:49]} 20. Qd2 {[%clk 0:02:02]}  Ne5 {[%clk 0:01:43]} 21. Bxe5 {[%clk 0:01:57]}  Rxe5 {[%clk 0:01:43]} 22. Rae1 {[%clk 0:01:42]}  Qf6 {[%clk 0:01:24]} 23. Rxe5 {[%clk 0:01:39]}  Qxe5 {[%clk 0:01:25]} 24. Re1 {[%clk 0:01:36]}  Qxg3+ {[%clk 0:01:22]} 0-1


[Site "https://www.chess.com"]

[Event "Titled Tuesday Blitz June 21 Early 2022"]
[White "Vifleemskaia, Svetlana"]
[Black "Espinosa Veloz, Ermes"]
[WhiteFideId "4129490"]
[BlackFideId "3507424"]
[WhiteElo "1929"]
[BlackElo "2333"]
[Result "1/2-1/2"]
[Round "02"]
[TimeControl "180+1"]
[Date "2022.06.22"]
[WhiteClock "0:00:05"]
[BlackClock "0:00:01"]

1. d4 {[%clk 0:03:00]}  d5 {[%clk 0:02:58]} 2. c4 {[%clk 0:03:00]}  c6 {[%clk 0:02:58]} 3. cxd5 {[%clk 0:03:00]}  cxd5 {[%clk 0:02:59]} 4. Bf4 {[%clk 0:03:01]}  Nf6 {[%clk 0:02:55]} 5. Nc3 {[%clk 0:03:00]}  Nc6 {[%clk 0:02:53]} 6. e3 {[%clk 0:02:59]}  a6 {[%clk 0:02:47]} 7. Bd3 {[%clk 0:02:58]}  e6 {[%clk 0:02:43]} 8. Rc1 {[%clk 0:02:58]}  Bd6 {[%clk 0:02:42]} 9. Bxd6 {[%clk 0:02:57]}  Qxd6 {[%clk 0:02:43]} 10. f4 {[%clk 0:02:58]}  O-O {[%clk 0:02:43]} 11. Nf3 {[%clk 0:02:57]}  Bd7 {[%clk 0:02:39]} 12. O-O {[%clk 0:02:58]}  Rfc8 {[%clk 0:02:36]} 13. Ne5 {[%clk 0:02:58]}  Ne7 {[%clk 0:02:28]} 14. g4 {[%clk 0:02:44]}  g6 {[%clk 0:02:23]} 15. g5 {[%clk 0:02:42]}  Nh5 {[%clk 0:02:21]} 16. Be2 {[%clk 0:02:39]}  Ng7 {[%clk 0:02:21]} 17. h4 {[%clk 0:02:39]}  Nef5 {[%clk 0:02:20]} 18. Qd2 {[%clk 0:02:38]}  Nxh4 {[%clk 0:02:19]} 19. Kf2 {[%clk 0:02:38]}  Bb5 {[%clk 0:01:38]} 20. Rh1 {[%clk 0:02:28]}  Bxe2 {[%clk 0:01:35]} 21. Qxe2 {[%clk 0:02:20]}  Nhf5 {[%clk 0:01:34]} 22. Ng4 {[%clk 0:02:14]}  h5 {[%clk 0:01:26]} 23. gxh6 {[%clk 0:02:12]}  Nh5 {[%clk 0:01:25]} 24. Rxh5 {[%clk 0:01:52]}  gxh5 {[%clk 0:01:25]} 25. Nf6+ {[%clk 0:01:52]}  Kh8 {[%clk 0:01:24]} 26. Qxh5 {[%clk 0:01:47]}  Qe7 {[%clk 0:01:19]} 27. Nfxd5 {[%clk 0:01:36]}  exd5 {[%clk 0:01:15]} 28. Qxf5 {[%clk 0:01:36]}  Qh4+ {[%clk 0:01:13]} 29. Ke2 {[%clk 0:01:22]}  Rg8 {[%clk 0:01:09]} 30. Nxd5 {[%clk 0:01:09]}  Rae8 {[%clk 0:01:09]} 31. Rc7 {[%clk 0:00:55]}  Rg1 {[%clk 0:00:52]} 32. Rxf7 {[%clk 0:00:44]}  Qe1+ {[%clk 0:00:46]} 33. Kd3 {[%clk 0:00:44]}  Qb1+ {[%clk 0:00:38]} 34. Kc3 {[%clk 0:00:35]}  Rc1+ {[%clk 0:00:33]} 35. Kb3 {[%clk 0:00:29]}  Qxf5 {[%clk 0:00:25]} 36. Rxf5 {[%clk 0:00:30]}  Rh1 {[%clk 0:00:25]} 37. Re5 {[%clk 0:00:22]}  Rf8 {[%clk 0:00:21]} 38. Nc3 {[%clk 0:00:16]}  Rxh6 {[%clk 0:00:19]} 39. d5 {[%clk 0:00:16]}  Rb6+ {[%clk 0:00:19]} 40. Kc2 {[%clk 0:00:16]}  Kg7 {[%clk 0:00:18]} 41. f5 {[%clk 0:00:13]}  Rh8 {[%clk 0:00:17]} 42. Re6 {[%clk 0:00:12]}  Rh2+ {[%clk 0:00:16]} 43. Kd3 {[%clk 0:00:11]}  Rbxb2 {[%clk 0:00:15]} 44. Ne4 {[%clk 0:00:10]}  Rxa2 {[%clk 0:00:12]} 45. d6 {[%clk 0:00:09]}  Ra1 {[%clk 0:00:08]} 46. Kd4 {[%clk 0:00:08]}  Rd1+ {[%clk 0:00:06]} 47. Ke5 {[%clk 0:00:09]}  Kf7 {[%clk 0:00:02]} 48. Re7+ {[%clk 0:00:09]}  Kf8 {[%clk 0:00:02]} 49. Nf6 {[%clk 0:00:07]}  Rhd2 {[%clk 0:00:01]} 50. Re8+ {[%clk 0:00:05]}  Kf7 {[%clk 0:00:01]} 51. Re7+ {[%clk 0:00:05]}  Kf8 {[%clk 0:00:01]} 52. Re8+ {[%clk 0:00:05]}  Kf7 {[%clk 0:00:01]} 53. Re7+ {[%clk 0:00:05]}  Kf8 {[%clk 0:00:01]} 1/2-1/2


[Site "https://www.chess.com"]

[Event "Titled Tuesday Blitz June 21 Early 2022"]
[White "Xu, Yi"]
[Black "Krishnan, Varun"]
[WhiteFideId "8605564"]
[BlackFideId "5054508"]
[WhiteElo "2471"]
[BlackElo "2591"]
[Result "1-0"]
[Round "02"]
[TimeControl "180+1"]
[Date "2022.06.21"]
[WhiteClock "0:00:46"]
[BlackClock "0:00:01"]

1. e4 {[%clk 0:03:00]}  c5 {[%clk 0:02:32]} 2. Nf3 {[%clk 0:03:00]}  e6 {[%clk 0:02:31]} 3. d4 {[%clk 0:03:01]}  cxd4 {[%clk 0:02:32]} 4. Nxd4 {[%clk 0:03:01]}  Nc6 {[%clk 0:02:32]} 5. Nc3 {[%clk 0:03:01]}  Qc7 {[%clk 0:02:28]} 6. Be3 {[%clk 0:03:01]}  Nf6 {[%clk 0:02:28]} 7. Ndb5 {[%clk 0:02:56]}  Qb8 {[%clk 0:02:24]} 8. f4 {[%clk 0:02:42]}  a6 {[%clk 0:02:14]} 9. e5 {[%clk 0:02:30]}  axb5 {[%clk 0:02:03]} 10. exf6 {[%clk 0:02:30]}  b4 {[%clk 0:01:49]} 11. Nb5 {[%clk 0:02:29]}  gxf6 {[%clk 0:01:21]} 12. Bb6 {[%clk 0:02:29]}  Qxf4 {[%clk 0:01:17]} 13. Nc7+ {[%clk 0:02:24]}  Ke7 {[%clk 0:01:16]} 14. Nxa8 {[%clk 0:02:12]}  Qh4+ {[%clk 0:01:02]} 15. Bf2 {[%clk 0:02:05]}  Qg5 {[%clk 0:00:50]} 16. Nb6 {[%clk 0:02:01]}  Qe5+ {[%clk 0:00:48]} 17. Be2 {[%clk 0:01:55]}  Bh6 {[%clk 0:00:47]} 18. O-O {[%clk 0:01:46]}  Be3 {[%clk 0:00:43]} 19. Bf3 {[%clk 0:01:38]}  Nd4 {[%clk 0:00:38]} 20. Kh1 {[%clk 0:01:20]}  Bxf2 {[%clk 0:00:28]} 21. Rxf2 {[%clk 0:01:20]}  Qc5 {[%clk 0:00:25]} 22. Rd2 {[%clk 0:01:06]}  Nf5 {[%clk 0:00:12]} 23. Nxc8+ {[%clk 0:01:02]}  Rxc8 {[%clk 0:00:13]} 24. Rxd7+ {[%clk 0:01:02]}  Ke8 {[%clk 0:00:13]} 25. Rxb7 {[%clk 0:00:58]}  Kf8 {[%clk 0:00:08]} 26. Qd7 {[%clk 0:00:56]}  Nd6 {[%clk 0:00:07]} 27. Ra7 {[%clk 0:00:49]}  Kg7 {[%clk 0:00:06]} 28. Rd1 {[%clk 0:00:48]}  Qxc2 {[%clk 0:00:03]} 29. Qxd6 {[%clk 0:00:47]}  Qxb2 {[%clk 0:00:01]} 30. Rxf7+ {[%clk 0:00:46]}  Kxf7 {[%clk 0:00:01]} 31. Qd7+ {[%clk 0:00:46]}  Kg6 {[%clk 0:00:02]} 32. Qxc8 {[%clk 0:00:46]}  Qxa2 {[%clk 0:00:01]} 33. Qg8+ {[%clk 0:00:46]} 1-0


[Site "https://www.chess.com"]

[Event "Titled Tuesday Blitz June 21 Early 2022"]
[White "Yurovskykh, Oleksandr"]
[Black "Puranik, Abhimanyu"]
[WhiteFideId "14134020"]
[BlackFideId "5061245"]
[WhiteElo "2568"]
[BlackElo "2784"]
[Result "0-1"]
[Round "02"]
[TimeControl "180+1"]
[Date "2022.06.22"]
[WhiteClock "0:00:02"]
[BlackClock "0:00:02"]

1. d4 {[%clk 0:02:54]}  Nf6 {[%clk 0:02:59]} 2. Nf3 {[%clk 0:02:53]}  b6 {[%clk 0:02:59]} 3. Bg5 {[%clk 0:02:52]}  Bb7 {[%clk 0:02:59]} 4. Bxf6 {[%clk 0:02:50]}  exf6 {[%clk 0:02:58]} 5. e3 {[%clk 0:02:51]}  f5 {[%clk 0:02:55]} 6. g3 {[%clk 0:02:50]}  g6 {[%clk 0:02:50]} 7. Bg2 {[%clk 0:02:49]}  Bg7 {[%clk 0:02:50]} 8. c4 {[%clk 0:02:48]}  d6 {[%clk 0:02:49]} 9. Nc3 {[%clk 0:02:49]}  O-O {[%clk 0:02:49]} 10. O-O {[%clk 0:02:49]}  Nd7 {[%clk 0:02:49]} 11. Ne1 {[%clk 0:02:45]}  Bxg2 {[%clk 0:02:49]} 12. Kxg2 {[%clk 0:02:46]}  Re8 {[%clk 0:02:49]} 13. Nc2 {[%clk 0:02:42]}  h5 {[%clk 0:02:48]} 14. b4 {[%clk 0:02:34]}  Nf6 {[%clk 0:02:46]} 15. b5 {[%clk 0:02:34]}  h4 {[%clk 0:02:39]} 16. Nb4 {[%clk 0:02:25]}  Ng4 {[%clk 0:02:37]} 17. Qf3 {[%clk 0:02:19]}  Qg5 {[%clk 0:02:23]} 18. Ncd5 {[%clk 0:02:07]}  Re4 {[%clk 0:01:50]} 19. Nc6 {[%clk 0:01:36]}  Rae8 {[%clk 0:01:46]} 20. Rae1 {[%clk 0:01:30]}  h3+ {[%clk 0:01:23]} 21. Kg1 {[%clk 0:01:18]}  Nf6 {[%clk 0:00:56]} 22. Nxc7 {[%clk 0:01:13]}  Rc8 {[%clk 0:00:54]} 23. Nd5 {[%clk 0:01:11]}  Nxd5 {[%clk 0:00:53]} 24. cxd5 {[%clk 0:01:12]}  Rce8 {[%clk 0:00:52]} 25. Kh1 {[%clk 0:01:04]}  Bf6 {[%clk 0:00:41]} 26. Rc1 {[%clk 0:01:02]}  Kg7 {[%clk 0:00:40]} 27. a4 {[%clk 0:01:01]}  f4 {[%clk 0:00:41]} 28. gxf4 {[%clk 0:00:57]}  Qxd5 {[%clk 0:00:40]} 29. Rg1 {[%clk 0:00:41]}  Qa2 {[%clk 0:00:37]} 30. Ra1 {[%clk 0:00:27]}  Qe6 {[%clk 0:00:33]} 31. f5 {[%clk 0:00:27]}  Qd5 {[%clk 0:00:33]} 32. fxg6 {[%clk 0:00:24]}  fxg6 {[%clk 0:00:33]} 33. Rg4 {[%clk 0:00:21]}  Qh5 {[%clk 0:00:11]} 34. Rag1 {[%clk 0:00:20]}  Rxg4 {[%clk 0:00:10]} 35. Qxg4 {[%clk 0:00:21]}  Qd5+ {[%clk 0:00:08]} 36. f3 {[%clk 0:00:18]}  g5 {[%clk 0:00:08]} 37. e4 {[%clk 0:00:17]}  Qb3 {[%clk 0:00:06]} 38. Qd7+ {[%clk 0:00:15]}  Kf8 {[%clk 0:00:06]} 39. Qf5 {[%clk 0:00:14]}  Kg7 {[%clk 0:00:06]} 40. Qd7+ {[%clk 0:00:08]}  Kf8 {[%clk 0:00:05]} 41. Qxd6+ {[%clk 0:00:09]}  Kg7 {[%clk 0:00:04]} 42. Qd7+ {[%clk 0:00:08]}  Kf8 {[%clk 0:00:05]} 43. Qf5 {[%clk 0:00:08]}  Kg7 {[%clk 0:00:03]} 44. e5 {[%clk 0:00:07]}  Bd8 {[%clk 0:00:01]} 45. Qd7+ {[%clk 0:00:07]}  Re7 {[%clk 0:00:01]} 46. Qg4 {[%clk 0:00:06]}  Rf7 {[%clk 0:00:01]} 47. Nxd8 {[%clk 0:00:04]}  Rxf3 {[%clk 0:00:02]} 48. Qxg5+ {[%clk 0:00:05]}  Kf8 {[%clk 0:00:02]} 49. Qg7+ {[%clk 0:00:05]}  Ke8 {[%clk 0:00:02]} 50. Ne6 {[%clk 0:00:05]}  Rf1 {[%clk 0:00:01]} 51. Qh8+ {[%clk 0:00:05]}  Kd7 {[%clk 0:00:01]} 52. Rxf1 {[%clk 0:00:04]}  Qd5+ {[%clk 0:00:01]} 53. Kg1 {[%clk 0:00:02]}  Qg2# {[%clk 0:00:02]} 0-1


[Site "https://www.chess.com"]

[Event "Titled Tuesday Blitz June 21 Early 2022"]
[White "parintele_chess"]
[Black "Reprintsev, Alexander"]
[BlackFideId "14100541"]
[WhiteElo "2263"]
[BlackElo "2108"]
[Result "0-1"]
[Round "02"]
[TimeControl "180+1"]
[Date "2022.06.22"]
[WhiteClock "0:00:46"]
[BlackClock "0:01:41"]

1. d4 {[%clk 0:03:00]}  d5 {[%clk 0:02:59]} 2. c4 {[%clk 0:02:59]}  e5 {[%clk 0:02:59]} 3. dxe5 {[%clk 0:02:58]}  d4 {[%clk 0:02:59]} 4. Nf3 {[%clk 0:02:59]}  Nc6 {[%clk 0:02:58]} 5. g3 {[%clk 0:02:58]}  Nge7 {[%clk 0:02:58]} 6. Bg2 {[%clk 0:02:59]}  Ng6 {[%clk 0:02:59]} 7. O-O {[%clk 0:02:58]}  Ngxe5 {[%clk 0:02:59]} 8. Nbd2 {[%clk 0:02:57]}  Nxf3+ {[%clk 0:02:59]} 9. Nxf3 {[%clk 0:02:58]}  Be7 {[%clk 0:02:59]} 10. b3 {[%clk 0:02:55]}  O-O {[%clk 0:02:57]} 11. Bb2 {[%clk 0:02:55]}  Bf6 {[%clk 0:02:58]} 12. Qd3 {[%clk 0:02:55]}  Nb4 {[%clk 0:02:49]} 13. Qb1 {[%clk 0:02:51]}  c5 {[%clk 0:02:48]} 14. a3 {[%clk 0:02:50]}  Nc6 {[%clk 0:02:49]} 15. Rd1 {[%clk 0:02:50]}  Qe7 {[%clk 0:02:48]} 16. Qd3 {[%clk 0:02:47]}  Re8 {[%clk 0:02:48]} 17. Re1 {[%clk 0:02:32]}  g6 {[%clk 0:02:48]} 18. Rad1 {[%clk 0:02:28]}  Bf5 {[%clk 0:02:47]} 19. Qd2 {[%clk 0:02:28]}  Rad8 {[%clk 0:02:46]} 20. h4 {[%clk 0:02:25]}  Be4 {[%clk 0:02:34]} 21. Ng5 {[%clk 0:02:23]}  Bxg2 {[%clk 0:02:32]} 22. Kxg2 {[%clk 0:02:23]}  Bxg5 {[%clk 0:02:26]} 23. hxg5 {[%clk 0:02:24]}  Qe4+ {[%clk 0:02:24]} 24. f3 {[%clk 0:02:24]}  Qe3 {[%clk 0:02:23]} 25. Qd3 {[%clk 0:02:18]}  Qxg5 {[%clk 0:02:20]} 26. Bc1 {[%clk 0:02:18]}  Qf5 {[%clk 0:02:08]} 27. Qxf5 {[%clk 0:01:57]}  gxf5 {[%clk 0:02:09]} 28. e4 {[%clk 0:01:58]}  fxe4 {[%clk 0:02:02]} 29. Rxe4 {[%clk 0:01:57]}  Rxe4 {[%clk 0:02:01]} 30. fxe4 {[%clk 0:01:58]}  Re8 {[%clk 0:02:01]} 31. Kf3 {[%clk 0:01:57]}  Ne5+ {[%clk 0:02:01]} 32. Kf4 {[%clk 0:01:58]}  Ng6+ {[%clk 0:02:01]} 33. Kf3 {[%clk 0:01:56]}  Kg7 {[%clk 0:02:01]} 34. Bf4 {[%clk 0:01:46]}  Re6 {[%clk 0:02:00]} 35. b4 {[%clk 0:01:44]}  b6 {[%clk 0:01:57]} 36. bxc5 {[%clk 0:01:43]}  bxc5 {[%clk 0:01:57]} 37. Rb1 {[%clk 0:01:44]}  Ra6 {[%clk 0:01:57]} 38. Rb3 {[%clk 0:01:40]}  Ra4 {[%clk 0:01:52]} 39. Bb8 {[%clk 0:01:30]}  Rxc4 {[%clk 0:01:51]} 40. Bxa7 {[%clk 0:01:30]}  Ne5+ {[%clk 0:01:51]} 41. Kf4 {[%clk 0:01:21]}  Nc6 {[%clk 0:01:50]} 42. Bb8 {[%clk 0:01:13]}  Rc3 {[%clk 0:01:48]} 43. Rb6 {[%clk 0:00:51]}  Nxb8 {[%clk 0:01:47]} 44. Rxb8 {[%clk 0:00:51]}  Rxa3 {[%clk 0:01:47]} 45. Rc8 {[%clk 0:00:52]}  Rc3 {[%clk 0:01:46]} 46. g4 {[%clk 0:00:50]}  d3 {[%clk 0:01:45]} 47. Kf5 {[%clk 0:00:48]}  d2 {[%clk 0:01:40]} 48. Rd8 {[%clk 0:00:48]}  Rf3+ {[%clk 0:01:40]} 49. Kg5 {[%clk 0:00:46]}  Rf2 {[%clk 0:01:41]} 50. e5 {[%clk 0:00:46]}  c4 {[%clk 0:01:41]} 0-1


[Site "https://www.chess.com"]